bitfinex/quotes_SOLUSD_20240613
["timestamp","ask_amount","ask_price","bid_price","bid_amount"]
[1718285190910,0.8040888,150.92,150.88,8.44]
[1718285195419,0.8040888,150.92,150.89,8.44]
[1718285195728,0.8040888,150.92,150.88,8.44]
[1718285196207,0.8040888,150.92,150.86,6.4197]
[1718285196413,9.2440888,150.92,150.86,6.4197]
[1718285196713,9.2440888,150.92,150.86,14.8597]
[1718285197416,8.44,150.89,150.81,6.4197]
[1718285197631,0.8040888,150.92,150.81,6.4197]
[1718285197632,100.0,150.9,150.81,6.4197]
[1718285197834,8.44,150.84,150.77,6.4197]
[1718285198127,8.44,150.84,150.78,8.44]
[1718285198328,8.44,150.84,150.79,8.44]
[1718285198835,6.4981,150.9,150.79,8.44]
[1718285199017,6.4981,150.9,150.77,6.4197]
[1718285199018,45.0,150.91,150.77,6.4197]
[1718285199333,8.44,150.88,150.82,8.44]
[1718285199840,8.44,150.87,150.82,8.44]
[1718285200334,8.44,150.87,150.79,0.17]
[1718285200507,8.44,150.85,150.78,20.0]
[1718285200705,8.44,150.84,150.79,8.44]
[1718285200937,8.44,150.83,150.77,6.4197]
[1718285201233,8.44,150.82,150.77,14.8597]
[1718285202136,8.44,150.82,150.77,6.4197]
[1718285202309,8.44,150.82,150.77,14.8597]
[1718285202508,8.44,150.83,150.77,14.8597]
[1718285202824,6.4981,150.87,150.77,6.4197]
[1718285205011,45.0,150.86,150.77,6.4197]
[1718285207331,0.17,150.85,150.73,6.47178648]
[1718285207534,25.33,150.83,150.73,6.47178648]
[1718285207742,45.0,150.82,150.73,6.47178648]
[1718285208050,105.36039275,150.88,150.73,6.47178648]
[1718285208212,45.0,150.86,150.73,6.47178648]
[1718285208418,125.33,150.88,150.73,31.80178648]
[1718285208617,25.33,150.88,150.73,31.80178648]
[1718285208847,242.7334,150.89,150.75,0.17]
[1718285209144,242.7334,150.89,150.75,45.68]
[1718285209442,242.7334,150.89,150.79,0.17]
[1718285209615,242.7334,150.89,150.79,20.68]
[1718285211458,242.7334,150.89,150.79,46.01]
[1718285214432,0.8040888,150.92,150.79,46.01]
[1718285217243,100.8040888,150.92,150.79,45.33]
[1718285217420,70.67,150.91,150.79,20.0]
[1718285217621,70.67,150.91,150.78,6.4197]
[1718285220245,0.17,150.89,150.78,6.4197]
[1718285220450,125.33,150.88,150.78,6.4197]
[1718285220865,45.0,150.87,150.78,6.4197]
[1718285221467,125.33,150.9,150.78,6.4197]
[1718285221646,45.0,150.89,150.78,6.4197]
[1718285224865,8.44,150.84,150.79,8.44]
[1718285225444,45.0,150.89,150.8,1.28664673]
[1718285225651,8.44,150.85,150.79,8.44]
[1718285226238,8.44,150.85,150.78,6.4197]
[1718285226239,8.44,150.85,150.8,8.44]
[1718285227959,0.8040888,150.92,150.83,8.44]
[1718285228147,0.8040888,150.92,150.84,6.4197]
[1718285228454,0.8040888,150.92,150.84,14.8597]
[1718285228681,8.44,150.9,150.84,14.8597]
[1718285228845,0.8040888,150.92,150.84,6.4197]
[1718285239746,100.8040888,150.92,150.84,6.4197]
[1718285240085,45.34,150.91,150.84,6.4197]
[1718285240243,100.17,150.9,150.81,6.4197]
[1718285240445,45.0,150.89,150.81,6.4197]
[1718285242772,25.31,150.9,150.81,6.4197]
[1718285242955,0.8040888,150.92,150.81,6.4197]
[1718285243152,45.8040888,150.92,150.81,6.4197]
[1718285243460,0.8040888,150.92,150.81,6.4197]
[1718285244377,125.31,150.9,150.81,6.4197]
[1718285244874,45.0,150.89,150.81,6.4197]
[1718285245255,25.31,150.9,150.81,6.4197]
[1718285245576,0.8040888,150.92,150.81,6.4197]
[1718285245777,45.8040888,150.92,150.81,6.4197]
[1718285246284,100.0,150.9,150.81,6.4197]
[1718285246575,45.0,150.89,150.81,6.4197]
[1718285248472,100.8040888,150.92,150.81,6.4197]
[1718285248675,0.8040888,150.92,150.81,6.4197]
[1718285248873,8.44,150.88,150.82,8.44]
[1718285249254,0.8040888,150.92,150.82,8.44]
[1718285249579,8.44,150.88,150.82,8.44]
[1718285249876,8.44,150.89,150.83,8.44]
[1718285251177,8.44,150.88,150.82,8.44]
[1718285254380,8.44,150.87,150.81,14.8597]
[1718285255358,8.44,150.86,150.81,6.4197]
[1718285255579,100.8040888,150.92,150.81,6.4197]
[1718285255878,8.44,150.87,150.81,14.8597]
[1718285257469,8.44,150.88,150.82,8.44]
[1718285257775,8.44,150.87,150.81,14.8597]
[1718285258763,8.44,150.88,150.82,8.44]
[1718285259165,45.0,150.91,150.82,8.44]
[1718285259383,8.44,150.88,150.82,8.44]
[1718285259586,45.8040888,150.92,150.82,8.44]
[1718285259889,8.44,150.88,150.82,8.44]
[1718285260388,45.8040888,150.92,150.81,14.8597]
[1718285260389,8.44,150.87,150.81,14.8597]
[1718285260981,8.44,150.88,150.82,8.44]
[1718285261281,8.44,150.87,150.81,14.8597]
[1718285265372,45.8040888,150.92,150.81,14.8597]
[1718285265589,8.44,150.87,150.81,14.8597]
[1718285267868,8.44,150.88,150.82,8.44]
[1718285268190,45.8040888,150.92,150.83,8.44]
[1718285268391,8.44,150.89,150.83,8.44]
[1718285269095,8.44,150.9,150.84,8.44]
[1718285269891,8.44,150.89,150.83,8.44]
[1718285270078,8.44,150.88,150.82,8.44]
[1718285270273,8.44,150.89,150.83,8.44]
[1718285270472,8.44,150.89,150.82,8.44]
[1718285270667,8.44,150.89,150.83,8.44]
[1718285275201,45.8040888,150.92,150.83,8.44]
[1718285275502,8.44,150.89,150.83,8.44]
[1718285275702,45.8040888,150.92,150.83,8.44]
[1718285276000,8.44,150.89,150.83,8.44]
[1718285277602,8.44,150.88,150.82,8.44]
[1718285278015,8.44,150.87,150.81,6.4197]
[1718285278176,8.44,150.86,150.81,6.4197]
[1718285279121,8.44,150.86,150.81,14.8597]
[1718285279485,8.44,150.87,150.81,14.8597]
[1718285280029,8.44,150.88,150.82,8.44]
[1718285280429,8.44,150.87,150.81,14.8597]
[1718285280737,145.8040888,150.92,150.82,8.44]
[1718285280738,8.44,150.88,150.82,8.44]
[1718285281312,8.44,150.87,150.81,14.8597]
[1718285281817,8.44,150.87,150.81,6.4197]
[1718285282017,0.17,150.91,150.81,14.8597]
[1718285282197,8.44,150.87,150.81,14.8597]
[1718285282820,8.44,150.87,150.81,6.4197]
[1718285283027,8.44,150.87,150.81,14.8597]
[1718285283525,7.24601673,150.91,150.81,14.8597]
[1718285283705,8.44,150.87,150.81,14.8597]
[1718285285524,7.07601673,150.91,150.82,8.44]
[1718285285818,8.44,150.88,150.82,8.44]
[1718285286111,45.8040888,150.92,150.83,8.44]
[1718285286325,8.44,150.88,150.83,8.44]
[1718285286498,8.44,150.88,150.82,8.44]
[1718285287034,8.44,150.89,150.83,8.44]
[1718285288207,0.8040888,150.92,150.83,8.44]
[1718285288410,8.44,150.89,150.83,8.44]
[1718285288917,8.44,150.9,150.84,8.44]
[1718285289220,8.44,150.89,150.83,8.44]
[1718285290617,0.8040888,150.92,150.83,8.44]
[1718285290818,0.8040888,150.92,150.84,8.44]
[1718285290819,8.44,150.9,150.84,8.44]
[1718285291032,8.44,150.9,150.85,8.44]
[1718285293598,0.8040888,150.92,150.87,8.44]
[1718285293806,0.8040888,150.92,150.9,8.44]
[1718285295822,0.8040888,150.92,150.91,8.44]
[1718285296540,0.8040888,150.92,150.9,8.44]
[1718285298225,0.8040888,150.92,150.89,0.17]
[1718285298425,0.8040888,150.92,150.91,8.44]
[1718285300710,242.7334,151.03,150.92,6.5897]
[1718285300911,387.1040888,151.06,150.97,8.44]
[1718285301336,8.44,151.03,150.97,8.44]
[1718285301544,8.44,151.03,150.93,20.17]
[1718285301744,8.44,151.01,150.96,8.44]
[1718285301914,8.44,151.01,150.93,20.17]
[1718285302118,8.44,151.0,150.93,20.0]
[1718285302314,8.44,151.0,150.94,8.44]
[1718285302534,8.44,151.0,150.95,8.44]
[1718285302915,8.44,151.0,150.93,20.0]
[1718285303119,0.17,151.01,150.88,6.4197]
[1718285303325,8.44,150.97,150.91,8.44]
[1718285303520,8.44,150.98,150.92,8.44]
[1718285303739,8.44,150.98,150.88,6.4197]
[1718285303740,8.44,150.97,150.88,6.4197]
[1718285304046,8.44,150.97,150.91,8.44]
[1718285304620,8.44,150.98,150.92,8.44]
[1718285305438,8.44,151.0,150.94,8.44]
[1718285305735,8.44,151.01,150.95,8.44]
[1718285306116,107.71199414,151.06,150.96,8.44]
[1718285306117,7.71199414,151.06,150.96,8.44]
[1718285306628,8.44,151.02,150.96,8.44]
[1718285307023,7.71199414,151.06,150.96,8.44]
[1718285307220,8.44,151.02,150.96,8.44]
[1718285307832,7.71199414,151.06,150.96,8.44]
[1718285308135,8.44,151.02,150.96,8.44]
[1718285308737,45.0,151.05,150.96,8.44]
[1718285308932,8.44,151.03,150.97,8.44]
[1718285309135,8.44,151.02,150.96,8.44]
[1718285309435,8.44,151.02,150.9,6.4197]
[1718285309436,108.44,151.04,150.93,8.44]
[1718285309638,8.44,150.99,150.93,8.44]
[1718285310040,8.44,150.98,150.92,8.44]
[1718285311225,8.44,150.99,150.93,8.44]
[1718285312831,8.44,150.99,150.94,8.44]
[1718285313829,45.0,151.03,150.95,8.44]
[1718285314031,100.8040888,151.06,150.95,8.44]
[1718285314333,8.44,151.02,150.96,8.44]
[1718285315345,8.44,151.01,150.91,0.34]
[1718285315536,8.44,151.0,150.95,8.44]
[1718285316426,6.9151254,151.05,150.96,6.4197]
[1718285316623,0.8040888,151.06,150.97,8.44]
[1718285316624,8.44,151.03,150.97,8.44]
[1718285317534,8.44,151.02,150.97,8.44]
[1718285317949,0.8040888,151.06,150.96,6.4197]
[1718285318150,8.44,151.02,150.96,14.8597]
[1718285318742,8.44,151.02,150.96,6.4197]
[1718285318949,45.8040888,151.06,150.96,14.8597]
[1718285318950,8.44,151.01,150.96,14.8597]
[1718285319456,8.44,151.01,150.96,6.4197]
[1718285319745,8.44,151.02,150.97,8.44]
[1718285320050,8.44,151.03,150.97,8.44]
[1718285320445,0.8040888,151.06,150.99,8.44]
[1718285320624,0.8040888,151.06,151.03,8.44]
[1718285320965,0.8040888,151.06,151.04,8.44]
[1718285321526,0.8040888,151.06,151.03,8.44]
[1718285321951,0.8040888,151.06,151.04,8.44]
[1718285322329,0.8040888,151.06,151.03,8.44]
[1718285323724,0.8040888,151.06,151.02,6.4197]
[1718285323929,0.8040888,151.06,151.0,0.17]
[1718285324144,9.2440888,151.06,151.01,8.44]
[1718285324342,0.8040888,151.06,150.99,0.34]
[1718285324557,0.8040888,151.06,151.01,8.44]
[1718285324737,0.8040888,151.06,150.99,20.17]
[1718285324942,0.8040888,151.06,151.01,8.44]
[1718285324943,9.2440888,151.06,151.01,8.44]
[1718285326450,0.8040888,151.06,151.02,8.44]
[1718285327031,0.8040888,151.06,151.01,8.44]
[1718285328939,9.2440888,151.06,151.01,8.44]
[1718285329140,0.8040888,151.06,151.01,8.44]
[1718285329654,0.8040888,151.06,151.02,8.44]
[1718285331203,0.8040888,151.06,150.99,20.0]
[1718285331359,8.44,151.01,150.94,6.4197]
[1718285331885,8.44,151.0,150.94,6.4197]
[1718285332274,8.44,151.04,150.94,6.4197]
[1718285332275,8.44,150.99,150.94,6.4197]
[1718285332795,8.44,150.98,150.9,11.67286906]
[1718285333087,8.44,150.98,150.9,6.4197]
[1718285333664,8.44,150.99,150.9,6.4197]
[1718285333891,8.44,150.97,150.92,8.44]
[1718285334060,0.17,151.03,150.92,8.44]
[1718285334383,0.17,151.03,150.9,6.4197]
[1718285334384,8.44,151.0,150.94,8.44]
[1718285334567,8.44,150.99,150.94,8.44]
[1718285335083,8.44,150.99,150.93,8.44]
[1718285335883,45.17,151.03,150.93,8.44]
[1718285336186,8.44,150.99,150.93,8.44]
[1718285336570,8.44,150.99,150.9,6.4197]
[1718285336778,8.44,150.99,150.93,8.44]
[1718285336964,0.17,151.03,150.92,8.44]
[1718285336965,8.44,150.98,150.92,8.44]
[1718285338689,45.0,151.04,150.96,8.44]
[1718285338894,8.44,151.02,150.96,8.44]
[1718285339084,8.44,151.01,150.96,8.44]
[1718285340079,6.4981,151.05,150.96,8.44]
[1718285340283,8.44,151.04,150.98,8.44]
[1718285340470,0.8040888,151.06,151.0,8.44]
[1718285340671,9.2440888,151.06,151.0,8.44]
[1718285340871,0.8040888,151.06,151.01,8.44]
[1718285341093,9.2440888,151.06,151.0,8.44]
[1718285341579,0.8040888,151.06,151.03,8.44]
[1718285341892,0.8040888,151.06,150.99,0.17]
[1718285342099,9.2440888,151.06,150.99,0.17]
[1718285342304,9.2440888,151.06,151.01,8.44]
[1718285342802,0.8040888,151.06,151.01,8.44]
[1718285343301,0.8040888,151.06,151.02,8.44]
[1718285343795,9.2440888,151.06,150.98,20.17]
[1718285343970,9.2440888,151.06,150.99,8.44]
[1718285344303,0.8040888,151.06,150.99,8.44]
[1718285344487,8.44,151.05,150.98,20.17]
[1718285344807,9.2440888,151.06,151.01,8.44]
[1718285344988,0.8040888,151.06,151.01,8.44]
[1718285345296,0.8040888,151.06,151.02,8.44]
[1718285346106,0.8040888,151.06,151.03,8.44]
[1718285346799,0.8040888,151.06,151.02,8.44]
[1718285347200,0.8040888,151.06,150.99,0.17]
[1718285347492,0.8040888,151.06,151.05,8.44]
[1718285349277,0.8040888,151.06,151.05,8.61]
[1718285349598,0.8040888,151.06,151.05,28.61]
[1718285349816,0.8040888,151.06,151.05,28.78]
[1718285350110,8.44,151.15,151.06,0.17]
[1718285350323,242.7334,151.17,151.1,8.44]
[1718285350617,242.7334,151.17,151.06,20.51]
[1718285350618,8.44,151.16,151.11,8.44]
[1718285351307,242.7334,151.17,151.11,8.44]
[1718285351531,242.7334,151.17,151.06,0.51]
[1718285351673,242.7334,151.17,151.16,8.44]
[1718285351872,242.7334,151.17,151.13,0.17]
[1718285352072,242.7334,151.17,151.16,8.44]
[1718285352275,6.4981,151.24,151.16,8.44]
[1718285352509,8.44,151.23,151.17,8.44]
[1718285352690,9.2440888,151.21,151.13,20.17]
[1718285352890,0.8040888,151.21,151.13,20.0]
[1718285353107,0.8040888,151.21,151.14,0.34]
[1718285353578,0.8040888,151.21,151.16,0.17]
[1718285354207,0.8040888,151.21,151.16,0.34]
[1718285354504,0.8040888,151.21,151.17,0.17]
[1718285354684,0.8040888,151.21,151.17,20.17]
[1718285355002,0.8040888,151.21,151.18,20.0]
[1718285355204,0.8040888,151.21,151.17,0.17]
[1718285355617,0.8040888,151.21,151.18,0.17]
[1718285355824,0.8040888,151.21,151.18,0.34]
[1718285357018,0.8040888,151.21,151.2,0.17]
[1718285357195,0.8040888,151.21,151.2,0.34]
[1718285357506,0.8040888,151.21,151.2,7.0997]
[1718285357711,0.8040888,151.21,151.2,72.0997]
[1718285358331,7.3021888,151.36,151.2,72.0997]
[1718285358626,25.21,151.35,151.22,0.17]
[1718285358808,25.21,151.35,151.22,0.34]
[1718285359616,45.34,151.34,151.22,0.17]
[1718285359812,125.21,151.32,151.2,6.4197]
[1718285360018,125.21,151.32,151.15,25.21]
[1718285360019,45.34,151.31,151.16,6.4197]
[1718285360215,45.34,151.31,151.16,26.4197]
[1718285360524,45.34,151.31,151.16,6.4197]
[1718285360525,131.7081,151.29,151.16,6.4197]
[1718285360732,45.0,151.28,151.16,6.4197]
[1718285361924,31.7081,151.29,151.16,6.4197]
[1718285362120,31.7081,151.29,151.17,20.0]
[1718285362299,45.17,151.28,151.17,20.0]
[1718285362499,31.7081,151.29,151.17,20.0]
[1718285362715,45.0,151.28,151.17,20.0]
[1718285363121,0.17,151.27,151.13,0.05194862]
[1718285363339,100.0,151.26,151.13,0.05194862]
[1718285363495,25.21,151.23,151.13,0.05194862]
[1718285363901,6.4981,151.21,151.13,0.05194862]
[1718285364158,6.4981,151.21,151.09,0.05196238]
[1718285364300,6.4981,151.21,151.09,25.26196238]
[1718285365609,6.4981,151.26,151.09,25.26196238]
[1718285365835,6.4981,151.26,151.1,19.9]
[1718285366113,6.4981,151.26,151.12,25.21]
[1718285366421,6.4981,151.26,151.13,0.17]
[1718285366621,6.4981,151.26,151.14,0.17]
[1718285366833,206.4981,151.26,151.13,20.34]
[1718285367043,231.7081,151.26,151.13,20.17]
[1718285367342,131.7081,151.26,151.13,20.17]
[1718285367524,31.7081,151.26,151.14,20.17]
[1718285367717,31.7081,151.26,151.14,20.34]
[1718285367917,6.4981,151.26,151.16,0.17]
[1718285368145,6.4981,151.26,151.16,0.34]
[1718285368534,6.4981,151.26,151.17,0.17]
[1718285368934,242.7334,151.28,151.17,0.17]
[1718285369217,25.21,151.29,151.18,0.17]
[1718285369419,6.4981,151.3,151.18,0.17]
[1718285369736,6.4981,151.3,151.18,0.34]
[1718285369921,6.4981,151.3,151.19,0.17]
[1718285370522,25.21,151.29,151.17,20.0]
[1718285370719,25.21,151.29,151.18,0.17]
[1718285370912,6.4981,151.3,151.18,0.34]
[1718285372638,6.4981,151.3,151.19,0.34]
[1718285372839,6.4981,151.3,151.2,0.17]
[1718285373529,6.4981,151.3,151.19,20.17]
[1718285373721,6.4981,151.3,151.18,0.34]
[1718285374328,256.1350505,151.34,151.2,0.17]
[1718285374523,281.3450505,151.34,151.2,0.34]
[1718285374846,281.3450505,151.34,151.19,20.17]
[1718285374847,25.21,151.31,151.19,20.17]
[1718285375044,25.21,151.31,151.19,0.17]
[1718285375364,25.21,151.31,151.18,0.34]
[1718285375561,281.3450505,151.34,151.18,70.55]
[1718285375562,249.2315,151.34,151.18,70.55]
[1718285375843,249.2315,151.34,151.19,20.0]
[1718285376043,249.2315,151.34,151.2,45.68]
[1718285376244,249.2315,151.34,151.22,0.17]
[1718285376455,249.2315,151.34,151.22,45.68]
[1718285376623,249.2315,151.34,151.24,6.5897]
[1718285376821,26.0140888,151.36,151.25,20.17]
[1718285377345,26.0140888,151.36,151.26,1.1226205]
[1718285377648,0.8040888,151.36,151.26,0.17]
[1718285377982,0.8040888,151.36,151.25,20.17]
[1718285378644,0.8040888,151.36,151.26,0.34]
[1718285378847,0.8040888,151.36,151.27,0.17]
[1718285379255,0.8040888,151.36,151.25,20.0]
[1718285380232,45.8040888,151.36,151.25,20.0]
[1718285380435,0.17,151.35,151.25,20.0]
[1718285380847,0.17,151.35,151.24,6.5897]
[1718285381773,145.8040888,151.36,151.24,6.5897]
[1718285382077,0.34,151.35,151.24,6.4197]
[1718285382253,0.17,151.35,151.24,6.4197]
[1718285382450,145.8040888,151.36,151.24,6.4197]
[1718285382869,45.8040888,151.36,151.24,6.4197]
[1718285383059,0.8040888,151.36,151.25,20.34]
[1718285383263,0.8040888,151.36,151.25,20.17]
[1718285383585,0.8040888,151.36,151.25,20.0]
[1718285383956,0.8040888,151.36,151.24,6.4197]
[1718285384152,0.17,151.35,151.24,6.4197]
[1718285384361,0.8040888,151.36,151.25,20.0]
[1718285384682,25.21,151.32,151.19,6.4197]
[1718285384880,45.17,151.31,151.19,6.4197]
[1718285385655,145.17,151.31,151.19,6.4197]
[1718285385854,0.17,151.3,151.19,6.4197]
[1718285386054,0.51,151.3,151.19,6.4197]
[1718285386285,0.17,151.29,151.19,6.4197]
[1718285386468,0.17,151.3,151.19,6.4197]
[1718285386980,145.17,151.31,151.19,6.4197]
[1718285386981,45.17,151.31,151.19,6.4197]
[1718285387796,145.17,151.31,151.2,20.0]
[1718285387987,0.17,151.3,151.2,20.0]
[1718285388500,100.0,151.29,151.19,6.4197]
[1718285388669,145.34,151.28,151.19,6.4197]
[1718285388871,100.17,151.27,151.12,6.4197]
[1718285389067,70.55,151.26,151.13,5.33245595]
[1718285389514,100.0,151.25,151.13,5.33245595]
[1718285389677,45.0,151.24,151.12,6.4197]
[1718285389878,45.0,151.24,151.13,20.0]
[1718285390985,45.0,151.25,151.13,20.0]
[1718285391409,45.0,151.25,151.14,0.17]
[1718285391608,0.34,151.26,151.14,0.17]
[1718285391609,45.34,151.26,151.14,0.17]
[1718285393684,45.34,151.26,151.14,0.34]
[1718285395609,45.0,151.26,151.14,0.34]
[1718285395805,32.11557241,151.27,151.14,0.34]
[1718285396180,6.90557241,151.27,151.14,0.34]
[1718285396379,0.17,151.28,151.14,0.34]
[1718285396687,45.34,151.28,151.14,0.34]
[1718285397430,170.55,151.28,151.14,0.34]
[1718285397731,70.55,151.28,151.14,0.34]
[1718285398322,170.55,151.28,151.14,0.34]
[1718285398508,100.17,151.27,151.14,0.34]
[1718285398707,45.34,151.26,151.14,0.34]
[1718285398909,25.21,151.25,151.13,20.0]
[1718285399109,145.34,151.24,151.12,6.4197]
[1718285399410,100.0,151.22,151.12,6.4197]
[1718285399608,245.34,151.24,151.12,6.4197]
[1718285399840,45.34,151.24,151.12,6.4197]
[1718285400519,125.21,151.22,151.12,6.4197]
[1718285400731,45.34,151.21,151.12,6.4197]
[1718285400925,25.21,151.19,151.12,6.4197]
[1718285401324,0.17,151.25,151.12,6.4197]
[1718285401530,45.34,151.25,151.12,6.4197]
[1718285401712,0.17,151.25,151.12,6.4197]
[1718285401906,386.3,151.26,151.12,6.4197]
[1718285402107,25.21,151.27,151.13,20.0]
[1718285402616,25.21,151.27,151.14,0.51]
[1718285403511,25.21,151.27,151.13,20.0]
[1718285403512,225.21,151.27,151.13,20.0]
[1718285403709,125.21,151.24,151.13,20.0]
[1718285404028,25.21,151.26,151.14,0.17]
[1718285404226,6.90486583,151.29,151.15,6.4197]
[1718285404444,25.21,151.27,151.16,20.17]
[1718285404633,25.21,151.27,151.15,6.4197]
[1718285404832,125.21,151.27,151.15,6.4197]
[1718285405133,100.0,151.25,151.15,6.4197]
[1718285405457,0.34,151.26,151.15,6.4197]
[1718285405638,6.90486583,151.29,151.16,20.17]
[1718285405939,6.90486583,151.29,151.17,0.17]
[1718285406117,32.11486583,151.29,151.17,0.17]
[1718285406328,132.11486583,151.29,151.16,20.17]
[1718285406521,32.11486583,151.29,151.16,20.0]
[1718285406733,32.11486583,151.29,151.17,0.34]
[1718285406944,32.11486583,151.29,151.17,0.17]
[1718285407333,25.21,151.23,151.15,6.4197]
[1718285407754,0.17,151.26,151.15,6.4197]
[1718285407938,70.72,151.26,151.15,6.4197]
[1718285408139,77.45680423,151.26,151.15,6.4197]
[1718285408328,26.0140888,151.36,151.15,6.4197]
[1718285408329,342.7334,151.31,151.15,6.4197]
[1718285408522,225.21,151.29,151.15,6.4197]
[1718285408722,206.90586097,151.29,151.15,6.4197]
[1718285408923,100.0,151.27,151.16,20.0]
[1718285409136,25.21,151.28,151.16,20.0]
[1718285409526,200.17,151.27,151.16,20.0]
[1718285409734,200.17,151.27,151.15,6.4197]
[1718285409735,45.0,151.26,151.15,6.4197]
[1718285410147,100.0,151.23,151.15,6.4197]
[1718285410327,70.21,151.22,151.15,6.4197]
[1718285410648,25.21,151.23,151.15,6.4197]
[1718285411030,45.0,151.22,151.15,6.4197]
[1718285411226,45.0,151.22,151.09,0.05196238]
[1718285411227,200.0,151.21,151.1,6.4197]
[1718285411433,0.17,151.18,151.1,6.4197]
[1718285411636,45.34,151.2,151.1,6.4197]
[1718285411843,0.17,151.19,151.1,6.4197]
[1718285412049,100.34,151.19,151.1,6.4197]
[1718285412244,200.0,151.17,151.1,6.4197]
[1718285412442,25.38,151.16,151.1,6.4197]
[1718285412760,70.21,151.16,151.1,6.4197]
[1718285412942,25.21,151.16,151.1,6.4197]
[1718285413136,145.51,151.15,151.06,6.4716727]
[1718285413453,225.21,151.13,151.06,6.4716727]
[1718285413655,45.34,151.12,151.06,6.4197]
[1718285414536,45.17,151.12,151.06,6.4197]
[1718285414737,45.0,151.12,151.06,6.4197]
[1718285414942,25.21,151.13,151.06,6.4197]
[1718285415265,25.21,151.19,151.06,6.4197]
[1718285415433,25.21,151.19,151.07,0.17]
[1718285415633,25.21,151.22,151.08,6.1321]
[1718285415831,25.21,151.22,151.09,0.34]
[1718285416134,25.21,151.22,151.1,6.1321]
[1718285416337,25.21,151.22,151.11,20.0]
[1718285416848,242.7334,151.24,151.14,0.17]
[1718285417049,242.7334,151.24,151.14,20.68]
[1718285417228,242.7334,151.24,151.14,20.34]
[1718285417434,25.21,151.28,151.16,6.3876]
[1718285417659,6.90586097,151.29,151.17,20.34]
[1718285417853,267.9434,151.31,151.17,20.34]
[1718285418057,267.9434,151.31,151.18,0.17]
[1718285418239,267.9434,151.31,151.19,0.17]
[1718285418555,267.9434,151.31,151.2,6.3462]
[1718285418756,242.7334,151.31,151.21,20.0]
[1718285419459,242.7334,151.31,151.22,0.34]
[1718285419854,26.0140888,151.36,151.23,6.3123]
[1718285420055,26.0140888,151.36,151.24,20.34]
[1718285420262,26.0140888,151.36,151.24,20.0]
[1718285420461,0.8040888,151.36,151.25,0.68]
[1718285420667,0.8040888,151.36,151.27,0.17]
[1718285420856,0.8040888,151.36,151.27,20.68]
[1718285421740,0.8040888,151.36,151.27,20.51]
[1718285422074,0.8040888,151.36,151.28,0.17]
[1718285422455,0.8040888,151.36,151.27,20.0]
[1718285422667,0.8040888,151.36,151.28,0.34]
[1718285422854,0.8040888,151.36,151.28,45.34]
[1718285423181,0.8040888,151.36,151.3,0.17]